fUSD/lending_fUSD_20250617
["ID","MTS","AMOUNT","RATE_DAILY","PERIOD"]
[366260327,1750164746918,-1415.52,0.00017589,2]
[366260328,1750164746940,-490.0,0.00017589,2]
[366260329,1750164746959,-490.0,0.00017589,2]
[366260330,1750164746979,-1049.28,0.00017589,2]
[366260331,1750164746996,-663.92,0.00017589,2]
[366260332,1750164747016,-708.23,0.00017589,2]
[366260333,1750164747036,-1322.55,0.00017589,2]
[366260334,1750164747054,-163.344123,0.00017589,2]
[366260335,1750164747073,-490.0,0.00017589,2]
[366260336,1750164747091,-163.344123,0.00017589,2]
[366260337,1750164747111,-1219.76,0.00017589,2]
[366260338,1750164747130,-2206.61,0.00017589,2]
[366260339,1750164747149,-490.0,0.00017589,2]
[366260340,1750164747168,-490.0,0.00017589,2]
[366260341,1750164747189,-151.0,0.00017589,2]
[366260342,1750164747210,-490.0,0.00017589,2]
[366260343,1750164747230,-731.67,0.00017589,2]
[366260344,1750164747249,-538.95,0.00017589,2]
[366260345,1750164747269,-151.0,0.00017589,2]
[366260346,1750164747288,-520.27,0.00017589,2]
[366260347,1750164747305,-490.0,0.00017589,2]
[366260348,1750164747323,-175.355961,0.00017589,2]
[366260349,1750164747342,-490.0,0.00017589,2]
[366260350,1750164747359,-490.0,0.00017589,2]
[366260351,1750164747379,-709.65,0.00017589,2]
[366260352,1750164747398,-490.0,0.00017589,2]
[366260353,1750164747416,-746.18,0.00017589,2]
[366260354,1750164747434,-490.0,0.00017589,2]
[366260355,1750164747452,-490.0,0.00017589,2]
[366260356,1750164747470,-490.0,0.00017589,2]
[366260357,1750164747489,-490.0,0.00017589,2]
[366260358,1750164747506,-908.62,0.00017589,2]
[366260359,1750164747543,-490.0,0.00017589,2]
[366260360,1750164747569,-577.82,0.00017589,2]
[366260361,1750164747593,-490.0,0.00017589,2]
[366260362,1750164747620,-490.0,0.00017589,2]
[366260363,1750164747640,-1326.45,0.00017589,2]
[366260364,1750164747660,-637.97,0.00017589,2]
[366260365,1750164747679,-490.0,0.00017589,2]
[366260366,1750164747698,-957.51,0.00017589,2]
[366260367,1750164747717,-827.74,0.00017589,2]
[366260368,1750164747736,-653.24,0.00017589,2]
[366260369,1750164747757,-490.0,0.00017589,2]
[366260370,1750164747776,-1030.84,0.00017589,2]
[366260371,1750164747796,-490.0,0.00017589,2]
[366260372,1750164747814,-490.0,0.00017589,2]
[366260373,1750164747833,-490.0,0.00017589,2]
[366260374,1750164747851,-490.0,0.00017589,2]
[366260375,1750164747869,-490.0,0.00017589,2]
[366260376,1750164747905,-543.54,0.00017589,2]
[366260377,1750164747931,-490.0,0.00017589,2]
[366260378,1750164747953,-490.0,0.00017589,2]
[366260379,1750164747977,-1310.15,0.00017589,2]
[366260380,1750164747999,-496.68,0.00017589,2]
[366260381,1750164748024,-1005.43,0.00017589,2]
[366260382,1750164748047,-490.0,0.00017589,2]
[366260383,1750164748069,-490.0,0.00017589,2]
[366260384,1750164748089,-490.0,0.00017589,2]
[366260385,1750164748110,-495.48,0.00017589,2]
[366260386,1750164748130,-975.37,0.00017589,2]
[366260387,1750164748152,-490.0,0.00017589,2]
[366260388,1750164748170,-882.14,0.00017589,2]
[366260389,1750164748195,-490.0,0.00017589,2]
[366260390,1750164748214,-490.0,0.00017589,2]
[366260391,1750164748233,-490.0,0.00017589,2]
[366260392,1750164748251,-391.981491,0.00017589,2]
[366260393,1750164748271,-490.0,0.00017589,2]
[366260394,1750164748300,-389.03,0.00017589,2]
[366260395,1750164748322,-151.0,0.00017589,2]
[366260396,1750164748344,-391.981491,0.00017589,2]
[366260397,1750164748366,-360.959804,0.00017589,2]
[366260398,1750164748389,-490.0,0.00017589,2]
[366260399,1750164748410,-360.959804,0.00017589,2]
[366260400,1750164748432,-534.08,0.00017589,2]
[366260401,1750164748452,-659.94,0.00017589,2]
[366260402,1750164748472,-490.0,0.00017589,2]
[366260403,1750164748493,-553.38,0.00017589,2]
[366260404,1750164748513,-1026.29,0.00017589,2]
[366260405,1750164748958,-490.0,0.00017589,2]
[366260406,1750164748984,-490.0,0.00017589,2]
[366260407,1750164748995,-490.0,0.00017589,2]
[366260408,1750164749005,-817.67,0.00017589,2]
[366260409,1750164749015,-490.0,0.00017589,2]
[366260410,1750164749026,-490.0,0.00017589,2]
[366260411,1750164749035,-151.0,0.00017589,2]
[366260412,1750164749045,-531.3,0.00017589,2]
[366260413,1750164749055,-490.0,0.00017589,2]
[366260414,1750164749065,-490.0,0.00017589,2]
[366260415,1750164749075,-490.0,0.00017589,2]
[366260416,1750164749084,-490.0,0.00017589,2]
[366260417,1750164749094,-1100.14,0.00017589,2]
[366260418,1750164749103,-660.53,0.00017589,2]
[366260419,1750164749113,-962.4,0.00017589,2]
[366260420,1750164749122,-490.0,0.00017589,2]
[366260421,1750164749132,-490.0,0.00017589,2]
[366260422,1750164749142,-490.0,0.00017589,2]
[366260423,1750164749152,-490.0,0.00017589,2]
[366260424,1750164749162,-490.0,0.00017589,2]
[366260425,1750164749172,-490.0,0.00017589,2]
[366260426,1750164749184,-720.15,0.00017589,2]
[366260427,1750164749194,-490.0,0.00017589,2]
[366260428,1750164749204,-1377.37,0.00017589,2]
[366260429,1750164749214,-498.02,0.00017589,2]
[366260430,1750164749224,-151.0,0.00017589,2]
[366260431,1750164749235,-490.0,0.00017589,2]
[366260432,1750164749245,-490.0,0.00017589,2]
[366260433,1750164749256,-490.0,0.00017589,2]
[366260434,1750164749266,-490.0,0.00017589,2]
[366260435,1750164749276,-490.0,0.00017589,2]
[366260436,1750164749286,-151.0,0.00017589,2]
[366260437,1750164749296,-490.0,0.00017589,2]
[366260438,1750164749306,-490.0,0.00017589,2]
[366260439,1750164749317,-490.0,0.00017589,2]
[366260440,1750164749327,-1323.87,0.00017589,2]
[366260441,1750164749337,-250.0,0.00017589,2]
[366260442,1750164749347,-490.0,0.00017589,2]
[366260443,1750164749357,-490.0,0.00017589,2]
[366260444,1750164749367,-820.55,0.00017589,2]
[366260445,1750164749378,-490.0,0.00017589,2]
[366260446,1750164749388,-1759.73,0.00017589,2]
[366260447,1750164749398,-490.0,0.00017589,2]
[366260448,1750164749408,-490.0,0.00017589,2]
[366260449,1750164749418,-763.5,0.00017589,2]
[366260450,1750164749428,-727.1,0.00017589,2]
[366260451,1750164749439,-490.0,0.00017589,2]
[366260452,1750164749449,-1756.61,0.00017589,2]
[366260453,1750164749459,-2106.23,0.00017589,2]
[366260454,1750164749470,-887.07,0.00017589,2]
[366260455,1750164749480,-490.0,0.00017589,2]
[366260456,1750164749491,-151.0,0.00017589,2]
[366260457,1750164749501,-490.0,0.00017589,2]
[366260458,1750164749511,-3566.07,0.00017589,2]
[366260459,1750164749521,-187.99,0.00017589,2]
[366260460,1750164749531,-1002.31,0.00017589,2]
[366260461,1750164749542,-1459.85,0.00017589,2]
[366260462,1750164749552,-1019.07,0.00017589,2]
[366260463,1750164749562,-2465.54,0.00017589,2]
[366260464,1750164749572,-490.0,0.00017589,2]
[366260465,1750164749583,-1541.9,0.00017589,2]
[366260466,1750164749592,-266.05,0.00017589,2]
[366260467,1750164749603,-490.0,0.00017589,2]
[366260468,1750164749613,-490.0,0.00017589,2]
[366260469,1750164749623,-1285.58,0.00017589,2]
[366260470,1750164749633,-499.32236933,0.00017589,2]
[366260471,1750164749643,-2302.59,0.00017589,2]
[366260472,1750164749652,-490.0,0.00017589,2]
[366260473,1750164749662,-490.0,0.00017589,2]
[366260474,1750164749672,-552.55,0.00017589,2]
[366260475,1750164749683,-1209.47,0.00017589,2]
[366260476,1750164749692,-1099.79,0.00017589,2]
[366260477,1750164749703,-490.0,0.00017589,2]
[366260478,1750164749714,-815.84,0.00017589,2]
[366260479,1750164749723,-1690.85,0.00017589,2]
[366260480,1750164749733,-490.0,0.00017589,2]
[366260481,1750164749743,-490.0,0.00017589,2]
[366260482,1750164749753,-1609.53,0.00017589,2]
[366260483,1750164749762,-2309.01,0.00017589,2]
[366260484,1750164749772,-491.21,0.00017589,2]
[366260485,1750164749782,-1850.524618,0.00017589,2]
[366260486,1750164749792,-490.0,0.00017589,2]
[366260487,1750164749801,-561.83,0.00017589,2]
[366260488,1750164749811,-490.0,0.00017589,2]
[366260489,1750164749821,-3025.16,0.00017589,2]
[366260490,1750164749832,-490.0,0.00017589,2]
[366260491,1750164749841,-978.71,0.00017589,2]
[366260492,1750164749851,-1827.87,0.00017589,2]
[366260493,1750164749861,-2376.97,0.00017589,2]
[366260494,1750164749870,-499.35,0.00017589,2]
[366260495,1750164749880,-665.58,0.00017589,2]
[366260496,1750164749890,-2059.97,0.00017589,2]
[366260497,1750164749900,-490.0,0.00017589,2]
[366260498,1750164749909,-2092.53,0.00017589,2]
[366260499,1750164749919,-490.0,0.00017589,2]
[366260500,1750164749929,-490.0,0.00017589,2]
[366260501,1750164749939,-211.60205581,0.00017589,2]
[366260502,1750164749948,-1763.65,0.00017589,2]
[366260503,1750164749958,-5417.93,0.00017589,2]
[366260504,1750164749968,-1518.66,0.00017589,2]
[366260505,1750164749978,-490.0,0.00017589,2]
[366260506,1750164749988,-947.96,0.00017589,2]
[366260507,1750164749998,-490.0,0.00017589,2]
[366260508,1750164750008,-1099.29,0.00017589,2]
[366260509,1750164750018,-311.71,0.00017589,2]
[366260510,1750164750028,-490.0,0.00017589,2]
[366260511,1750164750038,-490.0,0.00017589,2]
[366260512,1750164750048,-151.0,0.00017589,2]
[366260513,1750164750058,-490.0,0.00017589,2]
[366260514,1750164750068,-1237.37,0.00017589,2]
[366260515,1750164750078,-213.781959,0.00017589,2]
[366260516,1750164750087,-490.0,0.00017589,2]
[366260517,1750164750097,-6182.7,0.00017589,2]
[366260518,1750164750107,-492.19,0.00017589,2]
[366260519,1750164750116,-734.6,0.00017589,2]
[366260520,1750164750126,-490.0,0.00017589,2]
[366260521,1750164750135,-1065.56,0.00017589,2]
[366260522,1750164750145,-833.42,0.00017589,2]
[366260523,1750164750155,-213.781959,0.00017589,2]
[366260524,1750164750164,-7839.6,0.00017589,2]
[366260525,1750164750174,-1638.538412,0.00017589,2]
[366260526,1750164750185,-490.0,0.00017589,2]
[366260527,1750164750196,-490.0,0.00017589,2]
[366260528,1750164750206,-556.2,0.00017589,2]
[366260529,1750164750215,-16871.86,0.00017589,2]
[366260530,1750164750226,-1710.39,0.00017589,2]
[366260531,1750164750236,-2361.36,0.00017589,2]
[366260532,1750164750246,-490.0,0.00017589,2]
[366260533,1750164750256,-157.08197,0.00017589,2]
[366260534,1750164750265,-160.759601,0.00017589,2]
[366260535,1750164750275,-490.0,0.00017589,2]
[366260536,1750164750285,-5618.96,0.00017589,2]
[366260537,1750164750295,-606.69,0.00017589,2]
[366260538,1750164750306,-490.0,0.00017589,2]
[366260539,1750164750317,-583.96,0.00017589,2]
[366260540,1750164750326,-1285.51,0.00017589,2]
[366260541,1750164750336,-894.67,0.00017589,2]
[366260542,1750164750347,-490.0,0.00017589,2]
[366260543,1750164750357,-568.94,0.00017589,2]
[366260544,1750164750367,-490.0,0.00017589,2]
[366260545,1750164750378,-490.0,0.00017589,2]
[366260546,1750164750389,-2491.31,0.00017589,2]
[366260547,1750164750398,-490.0,0.00017589,2]
[366260548,1750164750409,-523.4,0.00017589,2]
[366260549,1750164750419,-490.0,0.00017589,2]
[366260550,1750164750429,-541.7,0.00017589,2]
[366260551,1750164750439,-1277.93,0.00017589,2]
[366260552,1750164750449,-709.0,0.00017589,2]
[366260553,1750164750459,-1650.05,0.00017589,2]
[366260554,1750164750469,-490.0,0.00017589,2]
[366260555,1750164750479,-490.0,0.00017589,2]
[366260556,1750164750490,-761.47,0.00017589,2]
[366260557,1750164750500,-704.002625,0.00017589,2]
[366260558,1750164750510,-490.0,0.00017589,2]
[366260559,1750164750520,-490.0,0.00017589,2]
[366260560,1750164750530,-490.0,0.00017589,2]
[366260561,1750164750541,-490.0,0.00017589,2]
[366260562,1750164750551,-704.002625,0.00017589,2]
[366260563,1750164750561,-1193.08,0.00017589,2]
[366260564,1750164750572,-664.73,0.00017589,2]
[366260565,1750164750582,-490.0,0.00017589,2]
[366260566,1750164750592,-2646.76,0.00017589,2]
[366260567,1750164750602,-2826.37,0.00017589,2]
[366260568,1750164750612,-490.0,0.00017589,2]
[366260569,1750164750622,-490.0,0.00017589,2]
[366260570,1750164750632,-4780.04,0.00017589,2]
[366260571,1750164750642,-391.508113,0.00017589,2]
[366260572,1750164750652,-653.71,0.00017589,2]
[366260573,1750164750662,-520.37,0.00017589,2]
[366260574,1750164750672,-1164.36,0.00017589,2]
[366260575,1750164750683,-1477.76,0.00017589,2]
[366260576,1750164750692,-490.0,0.00017589,2]
[366260577,1750164750702,-391.508113,0.00017589,2]
[366260578,1750164750713,-490.0,0.00017589,2]
[366260579,1750164750723,-501.58,0.00017589,2]
[366260580,1750164750733,-563.86,0.00017589,2]
[366260581,1750164750743,-2200.08,0.00017589,2]
[366260582,1750164750754,-490.0,0.00017589,2]
[366260583,1750164750764,-623.53,0.00017589,2]
[366260584,1750164750774,-1524.61,0.00017589,2]
[366260585,1750164750784,-490.0,0.00017589,2]
[366260586,1750164750794,-151.0,0.00017589,2]
[366260587,1750164750804,-1238.18,0.00017589,2]
[366260588,1750164750814,-2456.65,0.00017589,2]
[366260589,1750164750824,-1289.32,0.00017589,2]
[366260590,1750164750834,-927.08,0.00017589,2]
[366260591,1750164750845,-490.0,0.00017589,2]
[366260592,1750164750855,-700.04,0.00017589,2]
[366260593,1750164750866,-8543.47,0.00017589,2]
[366260594,1750164750876,-490.0,0.00017589,2]
[366260595,1750164750886,-1722.14,0.00017589,2]
[366260596,1750164750896,-492.63,0.00017589,2]
[366260597,1750164750907,-3973.97,0.00017589,2]
[366260598,1750164750917,-490.0,0.00017589,2]
[366260599,1750164750927,-623.14,0.00017589,2]
[366260600,1750164750938,-490.0,0.00017589,2]
[366260601,1750164750948,-1069.77,0.00017589,2]
[366260602,1750164750958,-490.0,0.00017589,2]
[366260603,1750164750968,-490.0,0.00017589,2]
[366260604,1750164750978,-1146.38,0.00017589,2]
[366260605,1750164750988,-490.0,0.00017589,2]
[366260606,1750164750998,-1240.51,0.00017589,2]
[366260607,1750164751007,-899.89,0.00017589,2]
[366260608,1750164751018,-1288.48,0.00017589,2]
[366260609,1750164751028,-490.0,0.00017589,2]
[366260610,1750164751038,-8958.91,0.00017589,2]
[366260611,1750164751049,-4666.51,0.00017589,2]
[366260612,1750164751059,-900.12,0.00017589,2]
[366260613,1750164751069,-490.0,0.00017589,2]
[366260614,1750164751079,-490.0,0.00017589,2]
[366260615,1750164751090,-490.0,0.00017589,2]
[366260616,1750164751100,-1214.19,0.00017589,2]
[366260617,1750164751111,-841.35,0.00017589,2]
[366260618,1750164751121,-490.0,0.00017589,2]
[366260619,1750164751131,-1696.76,0.00017589,2]
[366260620,1750164751140,-6403.92,0.00017589,2]
[366260621,1750164751150,-5069.31,0.00017589,2]
[366260622,1750164751161,-490.0,0.00017589,2]
[366260623,1750164751171,-1254.85,0.00017589,2]
[366260624,1750164751183,-490.0,0.00017589,2]
[366260625,1750164751197,-1922.55,0.00017589,2]
[366260626,1750164751207,-490.0,0.00017589,2]
[366260627,1750164751219,-490.0,0.00017589,2]
[366260628,1750164751228,-490.0,0.00017589,2]
[366260629,1750164751239,-572.96,0.00017589,2]
[366260630,1750164751250,-622.02,0.00017589,2]
[366260631,1750164751260,-1131.12,0.00017589,2]
[366260632,1750164751270,-541.2,0.00017589,2]
[366260633,1750164751280,-490.0,0.00017589,2]
[366260634,1750164751290,-490.0,0.00017589,2]
[366260635,1750164751301,-490.0,0.00017589,2]
[366260636,1750164751311,-3565.34,0.00017589,2]
[366260637,1750164751321,-958.15,0.00017589,2]
[366260638,1750164751332,-490.0,0.00017589,2]
[366260639,1750164751342,-202.261635,0.00017589,2]
[366260640,1750164751353,-698.17,0.00017589,2]
[366260641,1750164751363,-1641.86,0.00017589,2]
[366260642,1750164751374,-4754.63,0.00017589,2]
[366260643,1750164751384,-490.0,0.00017589,2]
[366260644,1750164751394,-717.05,0.00017589,2]
[366260645,1750164751405,-947.42,0.00017589,2]
[366260646,1750164751415,-818.35,0.00017589,2]
[366260647,1750164751426,-490.0,0.00017589,2]
[366260648,1750164751437,-3609.48,0.00017589,2]
[366260649,1750164751447,-490.0,0.00017589,2]
[366260650,1750164751457,-1389.77,0.00017589,2]
[366260651,1750164751468,-2322.63,0.00017589,2]
[366260652,1750164751479,-1795.91,0.00017589,2]
[366260653,1750164751489,-490.0,0.00017589,2]
[366260654,1750164751499,-676.55,0.00017589,2]
[366260655,1750164751509,-490.0,0.00017589,2]
[366260656,1750164751520,-490.0,0.00017589,2]
[366260657,1750164751530,-490.0,0.00017589,2]
[366260658,1750164751540,-490.0,0.00017589,2]
[366260659,1750164751550,-1713.68,0.00017589,2]
[366260660,1750164751560,-490.0,0.00017589,2]
[366260661,1750164751570,-490.0,0.00017589,2]
[366260662,1750164751580,-614.87,0.00017589,2]
[366260663,1750164751590,-536.49,0.00017589,2]
[366260664,1750164751600,-515.18,0.00017589,2]
[366260665,1750164751610,-922.15,0.00017589,2]
[366260666,1750164751621,-490.0,0.00017589,2]
[366260667,1750164751631,-836.27,0.00017589,2]
[366260668,1750164751642,-580.03,0.00017589,2]
[366260669,1750164751653,-764.25,0.00017589,2]
[366260670,1750164751663,-6572.71,0.00017589,2]
[366260671,1750164751673,-2988.54,0.00017589,2]
[366260672,1750164751683,-490.0,0.00017589,2]
[366260673,1750164751693,-490.0,0.00017589,2]
[366260674,1750164751702,-767.81,0.00017589,2]
[366260675,1750164751712,-490.0,0.00017589,2]
[366260676,1750164751722,-629.84,0.00017589,2]
[366260677,1750164751732,-490.0,0.00017589,2]
[366260678,1750164751742,-2812.68,0.00017589,2]
[366260679,1750164751752,-490.0,0.00017589,2]
[366260680,1750164751762,-2984.48,0.00017589,2]
[366260681,1750164751773,-1481.78,0.00017589,2]
[366260682,1750164751785,-490.0,0.00017589,2]
[366260683,1750164751795,-673.06,0.00017589,2]
[366260684,1750164751806,-2564.31,0.00017589,2]
[366260685,1750164751817,-490.0,0.00017589,2]
[366260686,1750164751828,-490.0,0.00017589,2]
[366260687,1750164751838,-857.16,0.00017589,2]
[366260688,1750164751849,-355.24104025,0.00017589,2]
[366260689,1750164751859,-6525.63,0.00017589,2]
[366260690,1750164751869,-599.13,0.00017589,2]
[366260691,1750164751879,-13649.84,0.00017589,2]
[366260692,1750164751889,-1032.47,0.00017589,2]
[366260693,1750164751899,-490.0,0.00017589,2]
[366260694,1750164751910,-490.0,0.00017589,2]
[366260695,1750164751920,-680.82,0.00017589,2]
[366260696,1750164751931,-490.0,0.00017589,2]
[366260697,1750164751940,-490.0,0.00017589,2]
[366260698,1750164751951,-981.43,0.00017589,2]
[366260699,1750164751962,-490.0,0.00017589,2]
[366260700,1750164751972,-5730.1,0.00017589,2]
[366260701,1750164751982,-713.63,0.00017589,2]
[366260702,1750164751993,-490.0,0.00017589,2]
[366260703,1750164752002,-490.0,0.00017589,2]
[366260704,1750164752012,-680.36,0.00017589,2]
[366260705,1750164752022,-460.67086211,0.00017589,2]
[366260706,1750164752033,-490.0,0.00017589,2]
[366260707,1750164752042,-4433.13,0.00017589,2]
[366260708,1750164752054,-756.93,0.00017589,2]
[366260709,1750164752065,-1533.32,0.00017589,2]
[366260710,1750164752075,-969.14,0.00017589,2]
[366260711,1750164752085,-2923.07,0.00017589,2]
[366260712,1750164752095,-490.0,0.00017589,2]
[366260713,1750164752104,-1116.74,0.00017589,2]
[366260714,1750164752115,-818.68,0.00017589,2]
[366260715,1750164752125,-151.0,0.00017589,2]
[366260716,1750164752135,-490.0,0.00017589,2]
[366260717,1750164752146,-490.0,0.00017589,2]
[366260718,1750164752156,-2360.93,0.00017589,2]
[366260719,1750164752167,-151.0,0.00017589,2]
[366260720,1750164752178,-1777.4,0.00017589,2]
[366260721,1750164752192,-490.0,0.00017589,2]
[366260722,1750164752202,-490.0,0.00017589,2]
[366260723,1750164752213,-4856.36,0.00017589,2]
[366260724,1750164752223,-490.0,0.00017589,2]
[366260725,1750164752234,-619.82,0.00017589,2]
[366260726,1750164752244,-510.66,0.00017589,2]
[366260727,1750164752254,-1028.02,0.00017589,2]
[366260728,1750164752264,-585.87,0.00017589,2]
[366260729,1750164752274,-3108.13,0.00017589,2]
[366260730,1750164752284,-602.17,0.00017589,2]
[366260731,1750164752294,-6423.75,0.00017589,2]
[366260732,1750164752305,-2298.59,0.00017589,2]
[366260733,1750164752317,-650.83,0.00017589,2]
[366260734,1750164752328,-490.0,0.00017589,2]
[366260735,1750164752338,-1192.02,0.00017589,2]
[366260736,1750164752349,-202.257405,0.00017589,2]
[366260737,1750164752359,-490.0,0.00017589,2]
[366260738,1750164752369,-681.33,0.00017589,2]
[366260739,1750164752380,-588.42,0.00017589,2]
[366260740,1750164752390,-1869.29,0.00017589,2]
[366260741,1750164752401,-202.257405,0.00017589,2]
[366260742,1750164752411,-490.0,0.00017589,2]
[366260743,1750164752420,-490.0,0.00017589,2]
[366260744,1750164752736,-20628.06,0.00017589,2]
[366260745,1750164752759,-3367.5,0.00017589,2]
[366260746,1750164752770,-490.0,0.00017589,2]
[366260747,1750164752780,-2842.54,0.00017589,2]
[366260748,1750164752791,-18776.46,0.00017589,2]
[366260749,1750164752801,-490.0,0.00017589,2]
[366260750,1750164752811,-490.0,0.00017589,2]
[366260751,1750164752821,-490.0,0.00017589,2]
[366260752,1750164752831,-1519.95,0.00017589,2]
[366260753,1750164752841,-1024.11,0.00017589,2]
[366260754,1750164752851,-1964.7,0.00017589,2]
[366260755,1750164752861,-150.0,0.00017595,2]
[366260756,1750164752871,-1000.0,0.00017597,2]
[366260757,1750164752881,-22090.47,0.000176,2]
[366260758,1750164752891,-171.296575,0.000176,2]
[366260759,1750164752902,-171.296575,0.000176,2]
[366260760,1750164752913,-151.0,0.000176,2]
[366260761,1750164752923,-151.0,0.000176,2]
[366260762,1750164752934,-151.0,0.000176,2]
[366260763,1750164752944,-151.0,0.000176,2]
[366260764,1750164752954,-150.0,0.0001761,2]
[366260765,1750164752965,-150.0,0.0001762,2]
[366260766,1750164752975,-151.0,0.00017624,2]
[366260767,1750164752986,-151.0,0.00017624,2]
[366260768,1750164752996,-151.0,0.00017624,2]
[366260769,1750164753008,-151.0,0.00017624,2]
[366260770,1750164753018,-214.597583,0.00017624,2]
[366260771,1750164753029,-214.597583,0.00017624,2]
[366260772,1750164753039,-155.801001,0.00017624,2]
[366260773,1750164753050,-155.801001,0.00017624,2]
[366260774,1750164753060,-9264.68941313,0.00017624,2]
[366260775,1750164753071,-150.0,0.00017632,2]
[366260776,1750164753081,-168.0,0.00017647,2]
[366260777,1750164753091,-807.76663066,0.00017653,2]
[366260778,1750164753101,-150.0,0.00017673,2]
[366260779,1750164753111,-150.0,0.0001768,2]
[366260780,1750164753121,-150.0,0.00017695,2]
[366260781,1750164753132,-150.0,0.000177,2]
[366260782,1750164753142,-150.0,0.00017702,2]
[366260783,1750164753153,-150.0,0.00017704,2]
[366260784,1750164753163,-150.0,0.00017723,2]
[366260785,1750164753173,-150.0,0.0001773,2]
[366260786,1750164753185,-150.0,0.00017731,2]
[366260787,1750164753199,-150.0,0.00017734,2]
[366260788,1750164753209,-150.0,0.00017739,2]
[366260789,1750164753219,-150.0,0.00017745,2]
[366260790,1750164753230,-152.0,0.0001775,7]
[366260791,1750164753241,-150.0,0.00017752,2]
[366260792,1750164753252,-151.0,0.00017753,2]
[366260793,1750164753262,-151.0,0.00017753,2]
[366260794,1750164753272,-151.0,0.00017753,2]
[366260795,1750164753282,-490.0,0.00017753,2]
[366260796,1750164753292,-676.71,0.00017753,2]
[366260797,1750164753302,-526.4,0.00017753,2]
[366260798,1750164753312,-151.0,0.00017753,2]
[366260799,1750164753322,-151.0,0.00017753,2]
[366260800,1750164753333,-490.0,0.00017753,2]
[366260801,1750164753343,-151.0,0.00017753,2]
[366260802,1750164753354,-638.839966,0.00017753,2]
[366260803,1750164753364,-490.0,0.00017753,2]
[366260804,1750164753375,-490.0,0.00017753,2]
[366260805,1750164753387,-638.839966,0.00017753,2]
[366260806,1750164753398,-490.0,0.00017753,2]
[366260807,1750164753409,-577.6,0.00017753,2]
[366260808,1750164753419,-151.0,0.00017753,2]
[366260809,1750164753431,-517.79,0.00017753,2]
[366260810,1750164753445,-490.0,0.00017753,2]
[366260811,1750164753457,-490.0,0.00017753,2]
[366260812,1750164753468,-490.0,0.00017753,2]
[366260813,1750164753479,-1000.0,0.00017753,2]
[366260814,1750164753489,-197.662097,0.00017753,2]
[366260815,1750164753500,-490.0,0.00017753,2]
[366260816,1750164753511,-490.0,0.00017753,2]
[366260817,1750164753522,-490.0,0.00017753,2]
[366260818,1750164753533,-490.0,0.00017753,2]
[366260819,1750164753544,-490.0,0.00017753,2]
[366260820,1750164753554,-490.0,0.00017753,2]
[366260821,1750164753564,-151.0,0.00017753,2]
[366260822,1750164753575,-538.89,0.00017753,2]
[366260823,1750164753585,-608.75,0.00017753,2]
[366260824,1750164753596,-490.0,0.00017753,2]
[366260825,1750164753607,-151.0,0.00017753,2]
[366260826,1750164753618,-151.0,0.00017753,2]